bitfinex-derivatives/quotes_BNBF0:USTF0_20230901
["timestamp","ask_amount","ask_price","bid_price","bid_amount"]
[1693605355873,0.17227359,213.8,213.26,0.86171129]
[1693605356070,0.17227359,213.84,213.26,0.86171129]
[1693605356271,0.17227359,213.83,213.26,0.86171129]
[1693605356466,0.17227359,213.84,213.26,0.86171129]
[1693605356773,0.17227359,213.83,213.26,0.86171129]
[1693605356970,0.17227359,213.84,213.26,0.86171129]
[1693605357165,0.17227359,213.83,213.26,0.86171129]
[1693605357370,0.17227359,213.82,213.26,0.86171129]
[1693605357573,0.17227359,213.81,213.26,0.86171129]
[1693605357771,0.17227359,213.8,213.26,0.86171129]
[1693605357967,0.17227359,213.85,213.26,0.86171129]
[1693605358169,0.17227359,213.84,213.26,0.86171129]
[1693605358373,0.17227359,213.83,213.26,0.86171129]
[1693605358672,0.17227359,213.82,213.26,0.86171129]
[1693605358972,0.17227359,213.81,213.26,0.86171129]
[1693605359173,0.17227359,213.8,213.26,0.86171129]
[1693605359370,0.17227359,213.79,213.26,0.86171129]
[1693605359568,0.17227359,213.78,213.26,0.86171129]
[1693605359769,0.17227359,213.77,213.26,0.86171129]
[1693605359977,0.17227359,213.76,213.26,0.86171129]
[1693605360176,0.17227359,213.75,213.26,0.86171129]
[1693605360375,0.17227359,213.74,213.26,0.86171129]
[1693605360675,0.17227359,213.73,213.26,0.93823826]
[1693605360871,0.17227359,213.72,213.27,0.86171129]
[1693605361079,0.17227359,213.71,213.27,0.86171129]
[1693605361378,0.17227359,213.7,213.27,0.86171129]
[1693605361579,0.17227359,213.69,213.27,0.86171129]
[1693605361775,0.17227359,213.86,213.27,0.86171129]
[1693605361976,0.17227359,213.85,213.27,0.86171129]
[1693605362180,0.17227359,213.86,213.27,0.86171129]
[1693605362379,0.17227359,213.85,213.27,0.86171129]
[1693605362576,0.17227359,213.87,213.27,0.86171129]
[1693605362781,0.17227359,213.86,213.27,0.86171129]
[1693605363080,0.17227359,213.85,213.27,0.86171129]
[1693605363282,0.17227359,213.84,213.27,0.86171129]
[1693605363582,0.17227359,213.83,213.27,0.86171129]
[1693605363780,0.17227359,213.82,213.27,0.93823826]
[1693605363972,0.17227359,213.86,213.28,0.86171129]
[1693605364178,0.17227359,213.85,213.28,0.86171129]
[1693605364379,0.17227359,213.86,213.28,0.86171129]
[1693605364679,0.17227359,213.85,213.28,0.86171129]
[1693605364880,0.17227359,213.86,213.28,0.93823826]
[1693605365077,0.17227359,213.85,213.29,0.86171129]
[1693605365277,0.17227359,213.86,213.3,0.86171129]
[1693605365476,0.17227359,213.85,213.29,0.86171129]
[1693605365682,0.17227359,213.86,213.3,0.86171129]
[1693605365876,0.17227359,213.85,213.29,0.86171129]
[1693605366078,0.17227359,213.84,213.3,0.86171129]
[1693605366280,0.17227359,213.84,213.28,0.07652697]
[1693605366281,0.17227359,213.83,213.31,0.86171129]
[1693605366479,0.17227359,213.82,213.28,0.07652697]
[1693605366682,0.17227359,213.81,213.29,0.86132726]
[1693605366882,0.17227359,213.86,213.29,0.86132726]
[1693605367079,0.17227359,213.85,213.29,0.86132726]
[1693605367282,0.17227359,213.87,213.29,0.86132726]
[1693605367481,0.17227359,213.86,213.29,0.86132726]
[1693605367678,0.17227359,213.87,213.29,0.86132726]
[1693605367879,5.08670208,213.88,213.29,0.86132726]
[1693605367880,0.17227359,213.86,213.29,0.86132726]
[1693605368084,0.17227359,213.85,213.29,0.86132726]
[1693605368283,0.17227359,213.84,213.29,0.86132726]
[1693605368479,0.17227359,213.87,213.29,0.86132726]
[1693605368780,0.17227359,213.86,213.29,0.86132726]
[1693605368987,0.17227359,213.87,213.29,0.86132726]
[1693605369184,0.17227359,213.86,213.29,0.86132726]
[1693605369385,0.17227359,213.87,213.29,0.86132726]
[1693605369585,0.17227359,213.86,213.29,0.86132726]
[1693605369781,0.17227359,213.85,213.29,0.86132726]
[1693605369981,0.17227359,213.84,213.29,0.86132726]
[1693605370179,0.17227359,213.83,213.29,0.86132726]
[1693605370387,0.17227359,213.82,213.29,0.86132726]
[1693605370585,0.17227359,213.87,213.29,0.86132726]
[1693605370887,0.17227359,213.86,213.29,0.86132726]
[1693605371181,0.17227359,213.85,213.29,0.86132726]
[1693605371384,0.17227359,213.84,213.29,0.86132726]
[1693605371585,0.17227359,213.83,213.29,0.86132726]
[1693605371789,0.17227359,213.82,213.29,0.86132726]
[1693605371987,0.17227359,213.87,213.29,0.86132726]
[1693605372182,0.17227359,213.86,213.29,0.86132726]
[1693605372382,0.17227359,213.87,213.29,0.86132726]
[1693605372582,0.17227359,213.86,213.29,0.86132726]
[1693605372783,0.17227359,213.85,213.29,0.86132726]
[1693605372987,0.17227359,213.84,213.29,0.86132726]
[1693605373187,0.17227359,213.87,213.29,0.86132726]
[1693605373790,0.17227359,213.87,213.29,0.93785423]
[1693605373990,0.17227359,213.87,213.3,0.86132726]
[1693605374787,5.25897567,213.87,213.3,0.86132726]
[1693605374990,0.17227359,213.86,213.3,0.86132726]
[1693605375692,0.17227359,213.86,213.3,0.93785423]
[1693605375896,0.17227359,213.86,213.31,0.86132726]
[1693605377693,0.17227359,213.86,213.31,0.93785423]
[1693605377894,0.17227359,213.86,213.32,0.86132726]
[1693605378095,5.25897567,213.86,213.32,0.86132726]
[1693605378396,0.17227359,213.85,213.32,0.86132726]
[1693605378895,5.25897567,213.85,213.32,0.86132726]
[1693605379097,0.17227359,213.84,213.32,0.86132726]
[1693605379693,0.17227359,213.84,213.31,0.07652697]
[1693605380690,5.08670208,213.83,213.31,0.07652697]
[1693605380895,0.17227359,213.82,213.32,0.07652697]
[1693605381995,5.25897567,213.82,213.32,0.07652697]
[1693605382196,0.17227359,213.81,213.32,0.07652697]
[1693605382794,0.17227359,213.81,213.33,0.07652697]
[1693605382994,5.25897567,213.81,213.33,0.07652697]
[1693605383194,0.17227359,213.8,213.33,0.07652697]
[1693605383998,0.17227359,213.8,213.32,0.07652697]
[1693605384895,0.17227359,213.8,213.33,0.07652697]
[1693605385599,5.08670208,213.79,213.33,0.07652697]
[1693605385794,5.25897567,213.78,213.33,0.07652697]
[1693605385999,0.17227359,213.77,213.33,0.07652697]
[1693605386800,0.17227359,213.76,213.34,0.07652697]
[1693605386996,0.17227359,213.75,213.34,0.07652697]
[1693605387201,0.17227359,213.74,213.34,0.07652697]
[1693605387395,0.17227359,213.73,213.34,0.07652697]
[1693605387599,0.17227359,213.72,213.34,0.07652697]
[1693605387794,0.17227359,213.71,213.36,0.07652697]
[1693605388000,0.17227359,213.7,213.36,0.07652697]
[1693605388193,5.08670208,213.75,213.36,0.07652697]
[1693605388194,0.17227359,213.74,213.36,0.07652697]
[1693605388396,0.17227359,213.73,213.36,0.07652697]
[1693605388595,0.17227359,213.74,213.36,0.07652697]
[1693605388799,0.17227359,213.73,213.36,0.07652697]
[1693605388999,0.17227359,213.74,213.36,0.07652697]
[1693605389197,0.17227359,213.73,213.36,0.07652697]
[1693605389396,0.17227359,213.74,213.36,0.07652697]
[1693605389596,0.17227359,213.73,213.36,0.07652697]
[1693605389799,0.17227359,213.74,213.35,0.07652697]
[1693605390002,0.17227359,213.73,213.35,0.07652697]
[1693605391906,5.25897567,213.73,213.35,0.07652697]
[1693605392207,0.17227359,213.72,213.35,0.07652697]
[1693605396409,0.17227359,213.72,213.36,0.07652697]
[1693605396612,0.17227359,213.71,213.36,0.07652697]
[1693605396913,0.17227359,213.7,213.35,0.07652697]
[1693605397111,0.17227359,213.69,213.35,0.07652697]
[1693605397310,0.17227359,213.73,213.35,0.07652697]
[1693605397507,0.17227359,213.72,213.35,0.07652697]
[1693605397706,0.17227359,213.73,213.35,0.07652697]
[1693605398012,0.17227359,213.72,213.35,0.07652697]
[1693605398312,0.17227359,213.71,213.35,0.07652697]
[1693605398512,0.17227359,213.73,213.35,0.07652697]
[1693605398708,0.17227359,213.72,213.35,0.07652697]
[1693605398908,0.17227359,213.73,213.34,0.07652697]
[1693605399106,0.17227359,213.72,213.34,0.07652697]
[1693605399306,0.17227359,213.73,213.34,0.07652697]
[1693605399508,0.17227359,213.72,213.34,0.07652697]
[1693605399712,0.17227359,213.73,213.34,0.07652697]
[1693605399904,0.17227359,213.72,213.34,0.07652697]
[1693605400109,0.17227359,213.71,213.34,0.07652697]
[1693605400308,0.17227359,213.7,213.34,0.07652697]
[1693605400509,0.17227359,213.69,213.34,0.07652697]
[1693605400706,0.17227359,213.68,213.34,0.07652697]
[1693605400913,0.17227359,213.67,213.34,0.07652697]
[1693605401112,0.17227359,213.72,213.34,0.07652697]
[1693605401412,0.17227359,213.71,213.33,0.07652697]
[1693605401712,0.17227359,213.7,213.33,0.07652697]
[1693605401913,0.17227359,213.69,213.33,0.07652697]
[1693605402110,0.17227359,213.72,213.33,0.07652697]
[1693605402411,0.17227359,213.71,213.33,0.07652697]
[1693605402612,0.17227359,213.7,213.33,0.07652697]
[1693605402809,0.17227359,213.69,213.33,0.07652697]
[1693605403012,0.17227359,213.68,213.33,0.07652697]
[1693605403315,0.17227359,213.67,213.33,0.07652697]
[1693605403509,5.08670208,213.72,213.33,0.07652697]
[1693605403510,0.17227359,213.71,213.33,0.07652697]
[1693605403714,0.17227359,213.7,213.32,0.07652697]
[1693605404014,0.17227359,213.69,213.32,0.07652697]
[1693605404216,0.17227359,213.68,213.32,0.07652697]
[1693605404409,0.17227359,213.71,213.32,0.07652697]
[1693605404616,0.17227359,213.7,213.32,0.07652697]
[1693605404817,0.17227359,213.71,213.32,0.07652697]
[1693605405018,0.17227359,213.7,213.32,0.07652697]
[1693605405217,0.17227359,213.71,213.32,0.07652697]
[1693605405418,0.17227359,213.7,213.32,0.07652697]
[1693605405718,0.17227359,213.69,213.32,0.07652697]
[1693605406018,0.17227359,213.68,213.32,0.07652697]
[1693605406214,0.17227359,213.71,213.32,0.07652697]
[1693605406414,0.17227359,213.7,213.32,0.07652697]
[1693605406619,0.17227359,213.71,213.32,0.07652697]
[1693605406817,0.17227359,213.7,213.32,0.07652697]
[1693605407019,0.17227359,213.69,213.32,0.07652697]
[1693605407218,0.17227359,213.71,213.32,0.07652697]
[1693605407519,0.17227359,213.7,213.32,0.07652697]
[1693605407720,0.17227359,213.69,213.32,0.07652697]
[1693605407920,0.17227359,213.68,213.32,0.07652697]
[1693605408118,0.17227359,213.67,213.32,0.07652697]
[1693605408422,0.17227359,213.66,213.32,0.07652697]
[1693605408720,0.17227359,213.65,213.32,0.07652697]
[1693605408920,0.17227359,213.64,213.32,0.07652697]
[1693605409118,0.17227359,213.63,213.32,0.07652697]
[1693605409315,0.17227359,213.71,213.32,0.07652697]
[1693605409519,0.17227359,213.7,213.33,0.07652697]
[1693605409714,0.17227359,213.69,213.33,0.07652697]
[1693605409918,0.17227359,213.68,213.33,0.07652697]
[1693605410115,0.17227359,213.72,213.33,0.07652697]
[1693605410315,0.17227359,213.71,213.32,0.07652697]
[1693605410517,0.17227359,213.7,213.33,0.07652697]
[1693605410716,0.17227359,213.69,213.33,0.07652697]
[1693605410916,0.17227359,213.68,213.32,0.07652697]
[1693605411120,0.17227359,213.67,213.32,0.07652697]
[1693605411320,0.17227359,213.66,213.32,0.07652697]
[1693605411521,0.17227359,213.71,213.32,0.07652697]
[1693605411721,0.17227359,213.7,213.32,0.07652697]
[1693605411915,5.08670208,213.72,213.32,0.07652697]
[1693605411916,0.17227359,213.69,213.32,0.07652697]
[1693605412121,0.17227359,213.68,213.32,0.07652697]
[1693605412317,0.17227359,213.67,213.32,0.07652697]
[1693605412519,0.17227359,213.66,213.32,0.07652697]
[1693605412719,0.17227359,213.65,213.32,0.07652697]
[1693605412916,0.17227359,213.64,213.32,0.07652697]
[1693605413222,0.17227359,213.63,213.32,0.07652697]
[1693605413423,0.17227359,213.62,213.32,0.07652697]
[1693605413620,5.08670208,213.72,213.32,0.07652697]
[1693605413823,0.1722551,213.71,213.32,0.07652697]
[1693605415620,0.1722551,213.7,213.32,0.07652697]
[1693605415821,0.1722551,213.69,213.32,0.07652697]
[1693605416024,0.1722551,213.68,213.32,0.07652697]
[1693605416224,0.1722551,213.67,213.32,0.07652697]
[1693605416425,0.1722551,213.66,213.32,0.07652697]
[1693605416722,0.1722551,213.65,213.32,0.07652697]
[1693605417022,0.1722551,213.64,213.32,0.07652697]
[1693605417327,0.1722551,213.63,213.32,0.07652697]
[1693605417528,5.08670208,213.72,213.32,0.07652697]
[1693605417529,0.1722551,213.62,213.32,0.07652697]
[1693605417829,5.08670208,213.72,213.32,0.07652697]
[1693605418030,0.1722556,213.71,213.32,0.07652697]
[1693605418931,0.1722556,213.71,213.33,0.07652697]
[1693605419133,0.1722556,213.7,213.33,0.07652697]
[1693605419425,0.1722556,213.69,213.33,0.07652697]
[1693605419629,0.1722556,213.68,213.33,0.07652697]
[1693605419830,0.1722556,213.72,213.33,0.07652697]
[1693605420030,0.1722556,213.71,213.33,0.07652697]
[1693605420329,0.1722556,213.7,213.33,0.07652697]
[1693605420530,0.1722556,213.72,213.33,0.07652697]
[1693605420731,0.1722556,213.71,213.33,0.07652697]
[1693605420932,0.1722556,213.72,213.33,0.07652697]
[1693605421125,0.1722556,213.71,213.33,0.07652697]
[1693605421327,0.1722556,213.72,213.33,0.07652697]
[1693605421526,0.1722556,213.71,213.33,0.07652697]
[1693605421730,0.1722556,213.7,213.33,0.07652697]
[1693605421931,0.1722556,213.69,213.33,0.07652697]
[1693605422131,0.1722556,213.68,213.33,0.07652697]
[1693605422331,0.1722556,213.67,213.33,0.07652697]
[1693605422524,0.1722556,213.66,213.33,0.07652697]
[1693605422726,0.1722556,213.65,213.33,0.07652697]
[1693605422925,0.1722556,213.64,213.33,0.07652697]
[1693605423129,0.1722556,213.63,213.33,0.07652697]
[1693605423326,0.1722556,213.62,213.33,0.07652697]
[1693605423531,5.08670208,213.73,213.33,0.07652697]
[1693605423732,0.17225234,213.72,213.33,0.07652697]
[1693605427137,0.17225234,213.72,213.34,0.07652697]
[1693605427538,0.17225234,213.72,213.33,0.07652697]
[1693605427839,0.17225234,213.72,213.34,0.07652697]
[1693605428037,0.17225234,213.72,213.33,0.07652697]
[1693605428639,0.17225234,213.72,213.34,0.07652697]
[1693605430835,0.17225234,213.71,213.34,0.07652697]
[1693605431039,0.17225234,213.7,213.34,0.07652697]
[1693605431337,0.17225234,213.69,213.34,0.07652697]
[1693605431543,0.17225234,213.73,213.34,0.07652697]
[1693605431739,5.08670208,213.74,213.34,0.07652697]
[1693605431740,0.17225234,213.72,213.34,0.07652697]
[1693605431940,0.17225234,213.73,213.34,0.07652697]
[1693605432141,0.17225234,213.72,213.34,0.07652697]
[1693605432440,0.17225234,213.71,213.34,0.07652697]
[1693605432640,0.17225234,213.7,213.34,0.07652697]
[1693605432842,0.17225234,213.69,213.34,0.07652697]
[1693605433142,0.17225234,213.68,213.34,0.07652697]
[1693605433336,0.17225234,213.67,213.34,0.07652697]
[1693605433535,5.08670208,213.79,213.37,0.07652697]
[1693605433738,0.17219258,213.78,213.38,0.86097487]
[1693605433937,0.17219258,213.8,213.38,0.86097487]
[1693605434135,0.17219258,213.79,213.38,0.86097487]
[1693605434442,0.17219258,213.78,213.38,0.86097487]
[1693605434643,0.17219258,213.77,213.38,0.86097487]
[1693605434842,0.17219258,213.76,213.36,0.07652697]
[1693605435041,0.17219258,213.75,213.37,0.86096724]
[1693605435341,0.17219258,213.74,213.37,0.86096724]
[1693605435540,0.17219258,213.8,213.37,0.86096724]
[1693605435743,0.17219258,213.79,213.38,0.86096724]
[1693605436040,0.17219258,213.78,213.35,0.07652697]
[1693605436237,0.17219258,213.77,213.36,0.8609704]
[1693605436436,0.17219258,213.76,213.36,0.8609704]
[1693605436641,0.17219258,213.75,213.36,0.8609704]
[1693605436836,5.08670208,213.83,213.35,0.8609704]
[1693605436837,0.17219258,213.82,213.35,0.8609704]
[1693605437041,0.17219258,213.81,213.36,0.8609704]
[1693605437242,0.17219258,213.8,213.37,0.8609704]
[1693605437439,0.17219258,213.79,213.38,0.8609704]
[1693605437643,0.17219258,213.78,213.34,0.07652697]
[1693605437943,0.17219258,213.77,213.35,0.86097603]
[1693605438144,0.17219258,213.84,213.35,0.86097603]
[1693605438343,0.17219258,213.83,213.35,0.86097603]
[1693605438536,0.17219258,213.84,213.35,0.86097603]
[1693605438738,0.17219258,213.83,213.35,0.86097603]
[1693605438940,0.17219258,213.82,213.35,0.86097603]
[1693605439141,0.17219258,213.81,213.35,0.86097603]
[1693605439338,0.17219258,213.84,213.35,0.86097603]
[1693605439542,0.17219258,213.83,213.35,0.86097603]
[1693605439842,0.17219258,213.82,213.35,0.86097603]
[1693605440048,0.17219258,213.81,213.36,0.86097603]
[1693605440240,0.17219258,213.84,213.34,0.86097603]
[1693605440444,0.17219258,213.83,213.35,0.86097603]
[1693605440645,0.17219258,213.82,213.36,0.86097603]
[1693605440843,0.17219258,213.81,213.37,0.86097603]
[1693605441044,0.17219258,213.8,213.38,0.86097603]
[1693605441343,0.17219258,213.79,213.33,0.07652697]
[1693605441545,0.17219258,213.78,213.34,0.86097799]
[1693605441741,0.17219258,213.77,213.34,0.86097799]
[1693605441946,0.17219258,213.76,213.34,0.86097799]
[1693605442145,0.17219258,213.75,213.34,0.86097799]
[1693605442445,0.17219258,213.74,213.34,0.86097799]
[1693605442746,0.17219258,213.73,213.34,0.86097799]
[1693605442946,0.17219258,213.86,213.34,0.86097799]
[1693605443146,0.17219258,213.85,213.34,0.86097799]
[1693605443345,0.17219258,213.84,213.34,0.86097799]
[1693605443545,0.17219258,213.83,213.34,0.86097799]
[1693605443745,0.17219258,213.82,213.34,0.86097799]
[1693605443944,0.17219258,213.81,213.34,0.86097799]
[1693605444145,0.17219258,213.8,213.34,0.86097799]
[1693605444342,0.17219258,213.86,213.34,0.86097799]
[1693605444546,0.17219258,213.85,213.34,0.86097799]
[1693605444748,0.17219258,213.84,213.34,0.86097799]
[1693605445048,0.17219258,213.83,213.34,0.93750496]
[1693605445348,0.17219258,213.82,213.35,0.86097799]
[1693605445547,0.17219258,213.81,213.35,0.86097799]
[1693605445746,0.17219258,213.8,213.35,0.86097799]
[1693605445946,0.17219258,213.88,213.35,0.86097799]
[1693605446144,0.17219258,213.87,213.35,0.86097799]
[1693605446343,0.17219258,213.86,213.35,0.86097799]
[1693605446545,5.08670208,213.89,213.35,0.86097799]
[1693605446546,0.17219258,213.85,213.35,0.86097799]
[1693605446846,0.17219258,213.84,213.35,0.86097799]
[1693605447043,0.17219258,213.83,213.35,0.86097799]
[1693605447244,0.17219258,213.82,213.35,0.86097799]
[1693605447442,0.17219258,213.88,213.35,0.86097799]
[1693605447642,0.17219258,213.87,213.35,0.86097799]
[1693605447943,0.17219258,213.86,213.35,0.86097799]
[1693605448147,0.17219258,213.85,213.35,0.86097799]
[1693605448349,0.17219258,213.84,213.35,0.86097799]
[1693605448543,0.17219258,213.88,213.35,0.86097799]
[1693605448751,0.17219258,213.87,213.35,0.86097799]
[1693605448948,0.17219258,213.86,213.35,0.86097799]
[1693605449248,0.17219258,213.85,213.35,0.86097799]
[1693605449448,0.17219258,213.84,213.35,0.86097799]
[1693605449748,0.17219258,213.83,213.35,0.86097799]
[1693605449946,0.17219258,213.82,213.35,0.86097799]
[1693605450143,0.17219258,213.81,213.35,0.86097799]
[1693605450344,0.17219258,213.8,213.35,0.86097799]
[1693605450547,0.17219258,213.79,213.35,0.86097799]
[1693605450743,0.17219258,213.78,213.35,0.86097799]
[1693605450947,0.17219258,213.77,213.35,0.93750496]
[1693605451145,0.17219258,213.76,213.36,0.86097799]
[1693605451349,0.17219258,213.75,213.37,0.86097799]
[1693605451546,0.17219258,213.88,213.35,0.93750496]
[1693605451750,0.17219258,213.87,213.36,0.86097799]
[1693605451948,0.17219258,213.86,213.37,0.07652697]
[1693605452252,0.17219258,213.86,213.14,1.02035965]
[1693605452253,0.17219258,213.85,213.38,0.86097799]
[1693605452452,0.17219258,213.84,213.41,0.07648118]
[1693605452650,0.17219258,213.95,213.42,0.86097799]
[1693605452851,0.17219258,213.94,213.42,0.86097799]
[1693605453155,0.17219258,213.93,213.42,0.86097799]
[1693605453346,0.17219258,213.92,213.42,0.86097799]
[1693605453551,0.17219258,213.91,213.42,0.86097799]
[1693605453748,0.17219258,213.9,213.42,0.86097799]
[1693605453951,0.17219258,213.89,213.42,0.86097799]
[1693605454154,0.17219258,213.88,213.42,0.86097799]
[1693605454350,0.17219258,213.98,213.42,0.86097799]
[1693605454554,0.17219258,213.97,213.42,0.86097799]
[1693605454756,0.17219258,213.96,213.43,0.86097799]
[1693605454957,0.17219258,213.95,213.44,0.86097799]
[1693605455158,0.17219258,213.94,213.45,0.86097799]
[1693605455358,0.17219258,213.93,213.46,0.86097799]
[1693605455558,0.17219258,213.92,213.4,0.07648118]
[1693605455756,0.17219258,213.91,213.41,0.8606648]
[1693605455958,0.17219258,213.9,213.41,0.8606648]
[1693605456158,0.17219258,213.89,213.41,0.8606648]
[1693605456359,0.17219258,213.88,213.41,0.93714598]
[1693605456659,0.17219258,213.87,213.42,0.8606648]
[1693605456859,0.17219258,214.0,213.41,0.93714598]
[1693605457061,0.17219258,213.99,213.42,0.8606648]
[1693605457258,0.17219258,214.0,213.42,0.8606648]
[1693605457554,0.17219258,213.99,213.42,0.8606648]
[1693605457751,0.17219258,213.98,213.42,0.8606648]
[1693605457957,0.17219258,213.97,213.42,0.8606648]
[1693605458152,0.17219258,214.01,213.42,0.8606648]
[1693605458354,0.17219258,214.0,213.42,0.8606648]
[1693605458554,0.17219258,213.99,213.42,0.8606648]
[1693605458861,0.17219258,213.98,213.42,0.8606648]
[1693605459061,0.17219258,213.97,213.42,0.8606648]
[1693605459355,0.17219258,213.96,213.42,0.8606648]
[1693605459554,0.17219258,213.95,213.42,0.8606648]
[1693605459759,0.17219258,213.94,213.42,0.8606648]
[1693605459958,0.17219258,214.02,213.42,0.8606648]
[1693605460159,0.17219258,214.01,213.42,0.8606648]
[1693605460361,0.17219258,214.02,213.42,0.8606648]
[1693605460562,0.17219258,214.01,213.42,0.8606648]
[1693605460756,0.17219258,214.02,213.42,0.8606648]
[1693605460959,0.17219258,214.01,213.42,0.8606648]
[1693605461161,0.17219258,214.02,213.42,0.8606648]
[1693605461363,0.17219258,214.01,213.42,0.8606648]
[1693605461562,0.17219258,214.02,213.42,0.8606648]
[1693605461764,0.17219258,214.01,213.42,0.8606648]
[1693605462063,0.17219258,214.0,213.42,0.8606648]
[1693605462265,0.17219258,213.99,213.42,0.8606648]
[1693605462461,0.17219258,213.98,213.42,0.93714598]
[1693605462663,0.17219258,213.97,213.43,0.8606648]
[1693605462861,0.17219258,213.96,213.43,0.8606648]
[1693605463058,0.17219258,213.95,213.43,0.8606648]
[1693605463263,0.17219258,213.94,213.43,0.8606648]
[1693605463463,0.17219258,213.93,213.43,0.8606648]
[1693605463663,0.17219258,213.92,213.43,0.8606648]
[1693605463864,0.17219258,213.91,213.43,0.8606648]
[1693605464166,0.17219258,213.9,213.43,0.8606648]
[1693605464367,0.17219258,214.01,213.43,0.8606648]
[1693605464565,0.17219258,214.0,213.43,0.93714598]
[1693605464766,0.17219258,214.01,213.44,0.8606648]
[1693605464966,0.17219258,214.0,213.44,0.8606648]
[1693605465265,0.17219258,213.99,213.44,0.8606648]
[1693605465465,0.17219258,214.01,213.44,0.8606648]
[1693605465766,0.17219258,214.0,213.44,0.8606648]
[1693605465967,0.17219258,213.99,213.44,0.8606648]
[1693605466266,0.17219258,213.98,213.44,0.8606648]
[1693605466466,0.17219258,213.97,213.44,0.8606648]
[1693605466668,0.17219258,213.96,213.44,0.93714598]
[1693605466870,0.17219258,213.95,213.45,0.8606648]
[1693605467167,0.17219258,213.94,213.45,0.8606648]
[1693605467370,0.17219258,213.93,213.45,0.8606648]
[1693605467567,0.17219258,213.92,213.45,0.8606648]
[1693605467763,0.17219258,213.91,213.45,0.8606648]
[1693605467965,0.17219258,213.9,213.45,0.8606648]
[1693605468162,0.17219258,213.99,213.45,0.8606648]
[1693605468468,0.17219258,213.98,213.45,0.8606648]
[1693605468668,0.17219258,213.97,213.45,0.8606648]
[1693605468866,5.26922061,214.0,213.45,0.8606648]
[1693605469065,0.17219258,213.99,213.45,0.8606648]
[1693605470571,0.17219258,213.99,213.45,0.93714598]
[1693605470766,0.17219258,213.99,213.46,0.8606648]
[1693605471567,0.17219258,213.99,213.45,0.93714598]
[1693605471771,0.17219258,213.99,213.46,0.8606648]
[1693605475570,5.26922061,213.99,213.46,0.8606648]
[1693605475769,0.17219258,213.98,213.46,0.8606648]
[1693605476575,0.17219258,213.98,213.46,0.93714598]
[1693605476776,0.17219258,213.98,213.47,0.8606648]
[1693605477076,0.17219258,213.98,213.46,0.07648118]
[1693605477276,0.17219258,213.98,213.47,0.8606519]
[1693605478075,0.17219258,213.98,213.47,0.93713308]
[1693605478277,0.17219258,213.97,213.48,0.8606519]
[1693605478477,0.17219258,213.96,213.48,0.8606519]
[1693605478676,0.17219258,213.95,213.48,0.8606519]
[1693605478975,0.17219258,213.94,213.48,0.8606519]
[1693605479176,0.17219258,213.93,213.48,0.8606519]
[1693605479371,0.17219258,213.92,213.48,0.8606519]
[1693605479569,0.17219258,213.91,213.48,0.93713308]
[1693605479770,0.17219258,213.9,213.48,0.07648118]
[1693605479973,0.17219258,213.98,213.48,0.07648118]
[1693605480176,0.17219258,213.97,213.48,0.07648118]
[1693605480374,0.17219258,213.98,213.48,0.07648118]
[1693605480575,0.17219258,213.97,213.48,0.07648118]
[1693605480774,0.17219258,213.98,213.48,0.07648118]
[1693605480975,0.17219258,213.97,213.48,0.07648118]
[1693605481171,0.17219258,213.98,213.48,0.07648118]
[1693605481370,0.17219258,213.97,213.48,0.07648118]
[1693605481574,5.26922061,213.98,213.49,0.07648118]
[1693605481778,0.17219258,213.97,213.49,0.07648118]
[1693605482076,0.17219258,213.97,213.48,0.07648118]
[1693605482277,0.17219258,213.97,213.49,0.86057962]
[1693605482676,0.17219258,213.97,213.49,0.9370608]
[1693605482871,0.17219258,213.97,213.49,0.07648118]
[1693605483673,5.26922061,213.97,213.49,0.07648118]
[1693605483878,0.17219258,213.96,213.49,0.07648118]
[1693605484480,0.17219258,213.96,213.5,0.07648118]
[1693605484673,5.26922061,213.96,213.5,0.07648118]
[1693605484873,0.17219258,213.95,213.5,0.07648118]
[1693605485680,0.17219258,213.95,213.51,0.07648118]
[1693605486378,5.26922061,213.95,213.51,0.07648118]
[1693605486579,0.17219258,213.94,213.52,0.07648118]
[1693605487479,5.09702803,213.93,213.52,0.07648118]
[1693605487680,0.17219258,213.92,213.52,0.07648118]
[1693605489683,0.17219258,213.92,213.51,0.07648118]
[1693605492485,5.26922061,213.92,213.5,0.07648118]
[1693605492685,0.17219258,213.91,213.5,0.07648118]
[1693605494081,0.17219258,213.92,213.5,0.07648118]
[1693605494384,0.17219258,213.91,213.5,0.07648118]
[1693605494585,0.17219258,213.92,213.5,0.07648118]
[1693605494785,0.17219258,213.91,213.5,0.07648118]
[1693605494986,0.17219258,213.9,213.5,0.07648118]
[1693605495183,0.17219258,213.92,213.5,0.07648118]
[1693605495381,0.17219258,213.91,213.5,0.07648118]
[1693605495682,0.17219258,213.9,213.5,0.07648118]
[1693605495885,0.17219258,213.89,213.5,0.07648118]
[1693605496182,0.17219258,213.88,213.5,0.07648118]
[1693605496379,0.17219258,213.87,213.5,0.07648118]
[1693605496584,0.17219258,213.92,213.5,0.07648118]
[1693605496784,0.17219258,213.91,213.5,0.07648118]
[1693605496984,0.17219258,213.9,213.5,0.07648118]
[1693605497181,0.17219258,213.89,213.5,0.07648118]
[1693605497381,0.17219258,213.88,213.5,0.07648118]
[1693605497581,0.17219258,213.87,213.49,0.07648118]
[1693605497788,0.17219258,213.86,213.49,0.07648118]
[1693605497985,0.17219258,213.85,213.49,0.07648118]
[1693605498185,0.17219258,213.84,213.5,0.07648118]